bitfinex/quotes_BTCUSD_20250518
["timestamp","ask_amount","ask_price","bid_price","bid_amount"]
[1747602054552,0.27683398,104130.0,104120.0,0.26559685]
[1747602054736,0.27683398,104130.0,104120.0,0.25599301]
[1747602054960,0.27683398,104130.0,104120.0,0.24638908]
[1747602055166,0.27683398,104130.0,104120.0,0.2559931]
[1747602055583,0.26723088,104130.0,104120.0,0.23678497]
[1747602056007,0.26723088,104130.0,104120.0,0.24638899]
[1747602056223,0.26723088,104130.0,104120.0,0.25599292]
[1747602056788,0.26716724,104130.0,104120.0,0.25599292]
[1747602059333,0.70447664,104130.0,104120.0,0.02549041]
[1747602059993,0.92281749,104130.0,104120.0,0.02549041]
[1747602061137,0.92281749,104130.0,104120.0,0.01409885]
[1747602067792,0.92281749,104130.0,104120.0,0.2061849]
[1747602068015,0.92281749,104130.0,104120.0,0.01409885]
[1747602068741,0.92281749,104130.0,104120.0,0.2061849]
[1747602068966,0.91321421,104130.0,104120.0,0.01409885]
[1747602069214,0.92321421,104130.0,104120.0,0.2061849]
[1747602069418,0.92321421,104130.0,104120.0,0.21578911]
[1747602070079,0.92321421,104130.0,104120.0,0.2157412]
[1747602070293,0.93281749,104130.0,104120.0,0.22534522]
[1747602070509,0.9424205,104130.0,104120.0,0.2157412]
[1747602071455,0.52734661,104130.0,104120.0,0.2157412]
[1747602071636,0.36189636,104130.0,104120.0,0.29505299]
[1747602071859,0.371499,104130.0,104120.0,0.29505299]
[1747602072500,0.38110182,104130.0,104120.0,0.29505299]
[1747602072702,0.36189636,104130.0,104120.0,0.29505299]
[1747602072899,0.02189636,104130.0,104120.0,0.49873299]
[1747602074376,0.02189636,104130.0,104120.0,0.51012455]
[1747602074594,0.02189636,104130.0,104120.0,0.52526068]
[1747602075580,0.02189636,104130.0,104120.0,0.62257008]
[1747602076494,0.02189636,104130.0,104120.0,0.62331756]
[1747602077316,0.02189636,104130.0,104120.0,0.611926]
[1747602077942,0.02189636,104130.0,104120.0,1.026606]
[1747602080866,0.02184791,104130.0,104120.0,1.026606]
[1747602082596,0.02184791,104130.0,104120.0,1.01146987]
[1747602083967,0.02184791,104130.0,104120.0,1.35146987]
[1747602085472,0.02054455,104130.0,104120.0,1.35146987]
[1747602085900,0.01929155,104130.0,104120.0,1.35146987]
[1747602087207,0.01929155,104130.0,104120.0,1.55486987]
[1747602088099,0.01027826,104130.0,104120.0,1.55480578]
[1747602088316,0.00865077,104130.0,104120.0,1.55480578]
[1747602088729,0.00815022,104130.0,104120.0,1.55480578]
[1747602088923,0.00798507,104130.0,104120.0,1.14772578]
[1747602089215,0.00798507,104130.0,104120.0,1.55476578]
[1747602089432,0.00791898,104130.0,104120.0,1.55476578]
[1747602090365,0.00791898,104130.0,104120.0,1.56992639]
[1747602090786,0.00251481,104130.0,104120.0,1.56992639]
[1747602090995,0.00151401,104130.0,104120.0,1.56992639]
[1747602091199,0.0011035,104130.0,104120.0,1.56992639]
[1747602091641,0.00097524,104130.0,104120.0,1.16288639]
[1747602091884,0.00093063,104130.0,104120.0,1.56988639]
[1747602092442,0.012,104150.0,104140.0,0.26915541]
[1747602092443,0.00920607,104150.0,104140.0,0.26915541]
[1747602092657,0.00920607,104150.0,104140.0,0.3862831]
[1747602092869,0.00920607,104150.0,104140.0,0.5899231]
[1747602093080,0.00920607,104150.0,104140.0,0.60019298]
[1747602093525,0.00920607,104150.0,104140.0,0.81867359]
[1747602093737,0.00920607,104150.0,104140.0,0.82081566]
[1747602095686,0.00561918,104150.0,104140.0,0.82081566]
[1747602096104,0.00561918,104150.0,104140.0,0.82181566]
[1747602101075,0.00561918,104150.0,104140.0,1.24546499]
[1747602102496,0.00561918,104150.0,104140.0,1.58546499]
[1747602103169,0.00561918,104150.0,104140.0,1.57030438]
[1747602104027,0.00561918,104150.0,104140.0,1.56830438]
[1747602104246,0.00561918,104150.0,104140.0,1.56730438]
[1747602104523,0.00561918,104150.0,104140.0,1.57130438]
[1747602104724,0.00561918,104150.0,104140.0,1.57430438]
[1747602105198,0.00561918,104150.0,104140.0,1.57030438]
[1747602105413,4e-05,104160.0,104150.0,0.60573421]
[1747602105633,4e-05,104160.0,104150.0,1.11504361]
[1747602107090,4e-05,104160.0,104150.0,1.13958446]
[1747602107292,4e-05,104160.0,104150.0,1.14258446]
[1747602107517,4e-05,104160.0,104150.0,1.14658446]
[1747602107727,4e-05,104160.0,104150.0,1.15567379]
[1747602110036,4e-05,104160.0,104150.0,1.18201417]
[1747602110482,0.00204,104170.0,104160.0,0.266513]
[1747602110697,0.00204,104170.0,104160.0,0.5669424]
[1747602111286,0.00204,104170.0,104160.0,0.9789424]
[1747602111544,0.00204,104170.0,104160.0,0.7758224]
[1747602111737,0.00204,104170.0,104160.0,1.1841424]
[1747602111950,0.00204,104170.0,104160.0,1.1851424]
[1747602112103,0.00204,104170.0,104160.0,1.19423173]
[1747602114848,0.00204,104170.0,104160.0,1.20851216]
[1747602116859,0.00204,104170.0,104160.0,1.62295216]
[1747602117425,0.00204,104170.0,104160.0,1.6385237]
[1747602118256,0.00204,104170.0,104160.0,1.6384437]
[1747602118671,0.00204,104170.0,104160.0,1.9784437]
[1747602120097,0.00204,104170.0,104160.0,2.00865187]
[1747602120335,4e-05,104180.0,104170.0,0.26709181]
[1747602120531,4e-05,104180.0,104170.0,0.36440121]
[1747602120740,4e-05,104180.0,104170.0,0.37174808]
[1747602121360,4e-05,104180.0,104170.0,0.37374808]
[1747602121985,0.00204,104190.0,104180.0,0.22077061]
[1747602122214,0.00204,104190.0,104180.0,0.42377061]
[1747602123018,0.02494,104190.0,104180.0,0.42377061]
[1747602123196,0.00251381,104190.0,104180.0,0.42577061]
[1747602123395,0.00251381,104190.0,104180.0,0.42677061]
[1747602124231,0.00251381,104190.0,104180.0,0.43585994]
[1747602124232,0.02541381,104190.0,104180.0,0.43585994]
[1747602125498,0.00251381,104190.0,104180.0,0.43585994]
[1747602126152,0.00251381,104190.0,104180.0,0.45100484]
[1747602127820,0.02551381,104190.0,104180.0,0.45100484]
[1747602128023,0.04801381,104190.0,104180.0,0.45100484]
[1747602128235,0.04801381,104190.0,104180.0,0.65408484]
[1747602128710,0.02551381,104190.0,104180.0,0.65408484]
[1747602129419,0.02551381,104190.0,104180.0,0.49872824]
[1747602129657,0.02551381,104190.0,104180.0,0.52752343]
[1747602129869,0.00251381,104190.0,104180.0,0.52752343]
[1747602131220,0.00251381,104190.0,104180.0,0.53888843]
[1747602134019,0.00251381,104190.0,104180.0,0.52752343]
[1747602135197,0.00251381,104190.0,104180.0,0.62483283]
[1747602136438,0.04981381,104190.0,104180.0,0.52720343]
[1747602136637,0.05941083,104190.0,104180.0,0.32432343]
[1747602137221,0.04981381,104190.0,104180.0,0.32432343]
[1747602137464,0.05941092,104190.0,104180.0,0.32432343]
[1747602138339,0.05941092,104190.0,104180.0,0.12144343]
[1747602138557,0.04981381,104190.0,104180.0,0.32432343]
[1747602138761,0.05941092,104190.0,104180.0,0.32432343]
[1747602139352,0.05941092,104190.0,104180.0,0.32055361]
[1747602139972,0.04981381,104190.0,104180.0,0.32055361]
[1747602140319,0.05941083,104190.0,104180.0,0.32055361]
[1747602140519,0.2705636,104190.0,104180.0,0.30135709]
[1747602140735,0.0786067,104190.0,104180.0,0.31095549]
[1747602140943,0.08100636,104190.0,104180.0,0.3205537]
[1747602141166,0.08100636,104190.0,104180.0,0.33015182]
[1747602141370,0.07140851,104190.0,104180.0,0.33015182]
[1747602143315,0.06900885,104190.0,104180.0,0.33015182]
[1747602143513,0.07860587,104190.0,104180.0,0.33015182]
[1747602143727,0.08820344,104190.0,104180.0,0.33015182]
[1747602144132,0.07860578,104190.0,104180.0,0.33015182]
[1747602144338,0.08820344,104190.0,104180.0,0.33015182]
[1747602144541,0.0690083,104190.0,104180.0,0.33015182]
[1747602145389,0.07860587,104190.0,104180.0,0.33015182]
[1747602145574,0.0690083,104190.0,104180.0,0.33015182]
[1747602147290,0.0690083,104190.0,104180.0,0.31877674]
[1747602147508,0.06900821,104190.0,104180.0,0.31877674]
[1747602147729,0.05941083,104190.0,104180.0,0.11589674]
[1747602147946,0.06900794,104190.0,104180.0,0.31881674]
[1747602148156,0.07860532,104190.0,104180.0,0.31881674]
[1747602148396,0.07860523,104190.0,104180.0,0.31881674]
[1747602148702,0.07860523,104190.0,104180.0,0.11589674]
[1747602148872,0.08820271,104190.0,104180.0,0.31881674]
[1747602150305,0.06900794,104190.0,104180.0,0.31881674]
[1747602150539,0.09780028,104190.0,104180.0,0.31881674]
[1747602152495,0.08820262,104190.0,104180.0,0.31881674]
[1747602152692,0.09780028,104190.0,104180.0,0.31881674]
[1747602152934,0.08820262,104190.0,104180.0,0.31881674]
[1747602153153,0.09780028,104190.0,104180.0,0.31881674]
[1747602155255,0.07860514,104190.0,104180.0,0.31881674]
[1747602155468,0.0978,104190.0,104180.0,0.31881674]
[1747602156607,0.09780064,104190.0,104180.0,0.31881674]
[1747602157884,0.08820298,104190.0,104180.0,0.31881674]
[1747602160636,0.08820289,104190.0,104180.0,0.31881674]
[1747602162396,0.08820298,104190.0,104180.0,0.31881674]
[1747602165371,0.05941092,104190.0,104180.0,0.31881674]
[1747602165580,0.06900839,104190.0,104180.0,0.31881674]
[1747602166391,0.07860596,104190.0,104180.0,0.31881674]
[1747602166635,0.07860596,104190.0,104180.0,0.33019182]
[1747602169319,0.08820362,104190.0,104180.0,0.33019182]
[1747602169521,0.08820362,104190.0,104180.0,0.32995182]
[1747602171311,0.07860596,104190.0,104180.0,0.32995182]
[1747602172407,0.08820362,104190.0,104180.0,0.32995182]
[1747602174592,0.07860596,104190.0,104180.0,0.32995182]
[1747602174791,0.06900839,104190.0,104180.0,0.32995182]
[1747602175043,0.07860596,104190.0,104180.0,0.32995182]
[1747602176569,0.06900839,104190.0,104180.0,0.32995182]
[1747602176779,0.07860587,104190.0,104180.0,0.32995182]
[1747602178138,0.06900839,104190.0,104180.0,0.32995182]
[1747602180209,0.06900839,104190.0,104180.0,0.33147212]
[1747602180446,0.05941101,104190.0,104180.0,0.33147212]
[1747602180656,0.07860568,104190.0,104180.0,0.33147212]
[1747602180877,0.08820316,104190.0,104180.0,0.33147212]
[1747602183432,0.09780082,104190.0,104180.0,0.33147212]
[1747602183658,0.08820316,104190.0,104180.0,0.33147212]
[1747602184735,0.09780082,104190.0,104180.0,0.33147212]
[1747602184949,0.08820316,104190.0,104180.0,0.33147212]
[1747602185454,0.05941101,104190.0,104180.0,0.33147212]
[1747602185808,0.07860605,104190.0,104180.0,0.33147212]
[1747602186475,0.07860596,104190.0,104180.0,0.33147212]
[1747602187004,0.08820362,104190.0,104180.0,0.33147212]
[1747602189572,0.07860596,104190.0,104180.0,0.33147212]
[1747602190002,0.08820371,104190.0,104180.0,0.33147212]
[1747602190369,0.08820362,104190.0,104180.0,0.33147212]
[1747602191344,0.07860596,104190.0,104180.0,0.33147212]
[1747602191540,0.08820362,104190.0,104180.0,0.33147212]
[1747602192786,0.08820362,104190.0,104180.0,0.12879212]
[1747602193007,0.09780137,104190.0,104180.0,0.33119212]
[1747602193713,0.08820362,104190.0,104180.0,0.33119212]
[1747602196333,0.09803617,104190.0,104180.0,0.33119212]
[1747602197298,0.09683617,104190.0,104180.0,0.33119212]
[1747602198758,0.10643392,104190.0,104180.0,0.33119212]
[1747602199608,0.08723851,104190.0,104180.0,0.33119212]
[1747602199822,0.09683617,104190.0,104180.0,0.33119212]
[1747602200490,0.10643402,104190.0,104180.0,0.33119212]
[1747602201313,0.10643402,104190.0,104180.0,0.32967182]
[1747602203276,0.09683617,104190.0,104180.0,0.32967182]
[1747602205221,0.04953617,104190.0,104180.0,0.32967182]
[1747602206806,0.03010596,104190.0,104180.0,0.32967182]
[1747602207225,0.01091101,104190.0,104180.0,0.32967182]
[1747602207462,0.00131381,104190.0,104180.0,0.36937182]
[1747602207885,0.01091083,104190.0,104180.0,0.36937182]
[1747602208531,0.02050803,104190.0,104180.0,0.36937182]
[1747602208947,0.02050794,104190.0,104180.0,0.36937182]
[1747602209662,0.02050794,104190.0,104180.0,0.38451672]
[1747602210354,0.03010514,104190.0,104180.0,0.38451672]
[1747602210565,0.01091083,104190.0,104180.0,0.38451672]
[1747602210754,0.02050803,104190.0,104180.0,0.38451672]
[1747602210993,0.01091083,104190.0,104180.0,0.38451672]
[1747602211211,0.01091092,104190.0,104180.0,0.38451672]
[1747602211430,0.02050821,104190.0,104180.0,0.38451672]
[1747602211714,0.01091092,104190.0,104180.0,0.38451672]
[1747602211916,0.02050821,104190.0,104180.0,0.38451672]
[1747602212097,0.00131381,104190.0,104180.0,0.38451672]
[1747602212684,0.01091101,104190.0,104180.0,0.38451672]
[1747602213133,0.01091092,104190.0,104180.0,0.38451672]
[1747602213703,0.02050821,104190.0,104180.0,0.38451672]
[1747602214382,0.02050821,104190.0,104180.0,0.36091672]
[1747602214781,0.02050821,104190.0,104180.0,0.34481672]
[1747602215170,0.03010569,104190.0,104180.0,0.34481672]
[1747602215373,0.03010559,104190.0,104180.0,0.34481672]
[1747602215776,0.04210268,104190.0,104180.0,0.34481672]
[1747602216093,0.03970316,104190.0,104180.0,0.34481672]
[1747602216345,0.03010559,104190.0,104180.0,0.34481672]
[1747602217702,0.02050821,104190.0,104180.0,0.34481672]
[1747602217915,0.02050821,104190.0,104180.0,0.37770863]
[1747602218297,0.01091092,104190.0,104180.0,0.37770863]
[1747602218641,0.02050821,104190.0,104180.0,0.37770863]
[1747602218846,0.01091092,104190.0,104180.0,0.37770863]
[1747602219047,0.02050812,104190.0,104180.0,0.37770863]
[1747602219254,0.03010541,104190.0,104180.0,0.37770863]
[1747602219728,0.02050812,104190.0,104180.0,0.37770863]
[1747602220146,0.0301055,104190.0,104180.0,0.37770863]
[1747602220342,0.02050812,104190.0,104180.0,0.37770863]
[1747602220795,0.0301055,104190.0,104180.0,0.37770863]
[1747602221598,0.03010541,104190.0,104180.0,0.36130863]
[1747602221743,0.03970279,104190.0,104180.0,0.36130863]
[1747602223840,0.04930036,104190.0,104180.0,0.34580863]
[1747602224868,0.03970279,104190.0,104180.0,0.34580863]
[1747602225075,0.04930036,104190.0,104180.0,0.34580863]
[1747602225285,0.03970279,104190.0,104180.0,0.34580863]
[1747602225920,0.03970279,104190.0,104180.0,0.37730863]
[1747602225921,0.0205083,104190.0,104180.0,0.37730863]
[1747602226963,0.0205083,104190.0,104180.0,0.36160863]
[1747602227871,0.0205083,104190.0,104180.0,0.34580863]
[1747602229808,0.01091092,104190.0,104180.0,0.34580863]
[1747602230118,0.0301056,104190.0,104180.0,0.34580863]
[1747602234378,0.02050812,104190.0,104180.0,0.34580863]
[1747602234586,0.0301056,104190.0,104180.0,0.34580863]
[1747602236428,0.0301055,104190.0,104180.0,0.34580863]
[1747602237377,0.0301055,104190.0,104180.0,1.34481672]
[1747602240230,0.03970298,104190.0,104180.0,1.34481672]
[1747602240478,0.04930064,104190.0,104180.0,1.34481672]
[1747602240683,0.06520055,104190.0,104180.0,1.34481672]
[1747602241091,0.05560298,104190.0,104180.0,1.34481672]
[1747602244963,0.06520064,104190.0,104180.0,1.34481672]
[1747602245236,0.05560298,104190.0,104180.0,1.34481672]
[1747602245428,0.06520064,104190.0,104180.0,1.34481672]
[1747602245640,0.05560298,104190.0,104180.0,1.34481672]
[1747602246355,0.06520064,104190.0,104180.0,1.34481672]
[1747602246589,0.05560298,104190.0,104180.0,1.34481672]
[1747602246827,0.06520064,104190.0,104180.0,1.34481672]
[1747602247053,0.05560298,104190.0,104180.0,1.34481672]
[1747602247297,0.05560298,104190.0,104180.0,1.32967182]
[1747602247824,0.06520055,104190.0,104180.0,1.32967182]
[1747602248061,0.05560298,104190.0,104180.0,1.32967182]
[1747602248506,0.06560298,104190.0,104180.0,1.32967182]
[1747602248731,0.07520064,104190.0,104180.0,1.32967182]
[1747602250139,0.06560298,104190.0,104180.0,1.32967182]
[1747602250579,0.06560307,104190.0,104180.0,1.32967182]
[1747602251531,0.04970307,104190.0,104180.0,1.32967182]
[1747602253268,0.0401055,104190.0,104180.0,1.32967182]
[1747602253479,0.04970307,104190.0,104180.0,1.32967182]
[1747602255106,0.05930073,104190.0,104180.0,1.32967182]
[1747602257058,0.05930073,104190.0,104180.0,1.02346441]
[1747602257059,0.72036713,104190.0,104180.0,1.02346441]
[1747602257272,0.945176,104190.0,104180.0,1.02346441]
[1747602257503,1.14296121,104190.0,104180.0,1.02346441]
[1747602257712,1.46644989,104190.0,104180.0,0.49333246]
[1747602257932,1.49527189,104190.0,104180.0,0.47773246]
[1747602258158,1.22008355,104190.0,104180.0,0.47773246]
[1747602258371,1.59582321,104190.0,104180.0,0.47873246]
[1747602258574,1.19278321,104190.0,104180.0,0.47873246]
[1747602258797,1.59682321,104190.0,104180.0,0.47873246]
[1747602258998,1.59582321,104190.0,104180.0,0.47873246]
[1747602259661,1.3567235,104190.0,104180.0,0.47773246]
[1747602259866,1.54450871,104190.0,104180.0,0.47773246]
[1747602260077,1.54850871,104190.0,104180.0,0.47773246]
[1747602260825,1.55150871,104190.0,104180.0,0.47773246]
[1747602261917,1.13850871,104190.0,104180.0,0.47773246]
[1747602262141,0.5719015,104190.0,104180.0,0.47773246]
[1747602262388,0.75880065,104190.0,104180.0,0.47773246]
[1747602262897,0.84592347,104190.0,104180.0,0.47773246]
[1747602263112,0.64448347,104190.0,104180.0,0.47773246]
[1747602263329,1.18592347,104190.0,104180.0,0.47773246]
[1747602264140,1.18492347,104190.0,104180.0,0.47773246]
[1747602264812,1.1123415,104190.0,104180.0,0.47773246]
[1747602265260,1.1108215,104190.0,104180.0,0.47773246]
[1747602265848,1.51639192,104190.0,104180.0,0.47773246]
[1747602266064,1.86797048,104180.0,104170.0,0.00243768]
[1747602266279,1.82559467,104180.0,104170.0,0.00243768]
[1747602266501,1.16509501,104180.0,104170.0,0.00243768]
[1747602266709,1.26624841,104180.0,104170.0,0.00243768]
[1747602267116,1.26824841,104180.0,104170.0,0.00243768]
[1747602267673,1.1743732,104180.0,104170.0,0.00243768]
[1747602267881,1.19056203,104180.0,104170.0,0.00243768]
[1747602269385,0.2474342,104170.0,104160.0,0.002]
[1747602269589,0.97240855,104170.0,104160.0,0.002]
[1747602269806,1.17404855,104170.0,104160.0,0.002]
[1747602270011,1.14674821,104170.0,104160.0,0.002]
[1747602270267,1.48674821,104170.0,104160.0,0.002]
[1747602270482,1.52404855,104170.0,104160.0,0.002]
[1747602270712,1.52604855,104170.0,104160.0,0.002]
[1747602271150,1.49874821,104170.0,104160.0,0.002]
[1747602271360,1.49674821,104170.0,104160.0,0.002]
[1747602271563,1.48674821,104170.0,104160.0,0.002]
[1747602271806,1.39143881,104170.0,104160.0,0.002]
[1747602272779,1.39141965,104170.0,104160.0,0.002]
[1747602272980,1.39341965,104170.0,104160.0,0.002]
[1747602275267,1.0917436,104170.0,104160.0,0.002]
[1747602275492,1.49072905,104170.0,104160.0,0.002]
[1747602276340,2.17852905,104170.0,104160.0,0.002]
[1747602277911,1.876853,104170.0,104160.0,0.002]
[1747602279371,2.17852905,104170.0,104160.0,0.002]
[1747602279587,1.77552905,104170.0,104160.0,0.002]
[1747602279787,2.17848905,104170.0,104160.0,0.002]
[1747602280647,2.20731405,104170.0,104160.0,0.002]
[1747602281861,0.02880847,104130.0,104120.0,0.59794107]
[1747602282462,0.03841166,104130.0,104120.0,0.5883376]
[1747602282847,0.03841166,104130.0,104120.0,0.60093683]
[1747602283085,0.01920537,104130.0,104120.0,0.60141064]
[1747602283305,0.56085578,104140.0,104130.0,0.20167088]
[1747602283523,0.56085578,104140.0,104130.0,0.51295012]
[1747602283746,0.36880662,104140.0,104130.0,0.23047999]
[1747602283966,0.36880662,104140.0,104130.0,0.54175877]
[1747602284181,0.37840907,104140.0,104130.0,0.54175877]
[1747602284400,0.36880662,104140.0,104130.0,0.53215604]
[1747602284629,0.37840907,104140.0,104130.0,0.54775886]
[1747602284850,0.55125397,104140.0,104130.0,0.04670338]
[1747602285055,0.55125397,104140.0,104130.0,0.24837426]
[1747602285274,0.54165161,104140.0,104130.0,0.0216]
[1747602285714,0.63896101,104140.0,104130.0,0.006]
[1747602285934,0.66970186,104140.0,104130.0,0.006]
[1747602286153,0.68500186,104140.0,104130.0,0.006]
[1747602286585,0.54167079,104130.0,104120.0,0.22736774]
[1747602287087,0.54167079,104130.0,104120.0,0.23648181]
[1747602287505,0.54167079,104130.0,104120.0,0.22687823]
[1747602287711,0.54167079,104130.0,104120.0,0.23948244]
[1747602288148,0.54167079,104130.0,104120.0,0.24248244]
[1747602288379,0.54167079,104130.0,104120.0,0.24228244]
[1747602288751,0.54167079,104130.0,104120.0,0.04059218]
[1747602289163,0.54167079,104130.0,104120.0,0.23267823]
[1747602289923,0.54167079,104130.0,104120.0,0.24228244]
[1747602291013,0.5320676,104130.0,104120.0,0.03098788]
[1747602291420,0.54173973,104130.0,104120.0,0.03098788]
[1747602291873,0.63904913,104130.0,104120.0,0.03098788]
[1747602292052,0.63904913,104130.0,104120.0,0.01538788]
[1747602293175,0.63904913,104130.0,104120.0,0.02298494]
[1747602293781,0.63904913,104130.0,104120.0,0.03848494]
[1747602300632,0.63904913,104130.0,104120.0,0.24017529]
[1747602301163,0.63904913,104130.0,104120.0,0.04808924]
[1747602301442,0.63904913,104130.0,104120.0,0.03848494]
[1747602301713,0.84008913,104130.0,104120.0,0.03918494]
[1747602302188,0.63904913,104130.0,104120.0,0.24087529]
[1747602302428,0.84008913,104130.0,104120.0,0.24087529]
[1747602302648,0.63904913,104130.0,104120.0,0.26008343]
[1747602302898,0.84008913,104130.0,104120.0,0.2504795]
[1747602303615,0.84008913,104130.0,104120.0,0.26008361]
[1747602304306,0.4373094,104130.0,104120.0,0.26008361]
[1747602304543,0.5602061,104130.0,104120.0,0.29599119]
[1747602304801,0.77147972,104130.0,104120.0,0.29599138]
[1747602305429,0.77147972,104130.0,104120.0,0.29599082]
[1747602308089,0.77147972,104130.0,104120.0,0.28638708]
[1747602308356,0.77147972,104130.0,104120.0,0.29599082]
[1747602308570,0.57941212,104130.0,104120.0,0.29599026]
[1747602309454,0.77147972,104130.0,104120.0,0.28638661]
[1747602309709,0.77147972,104130.0,104120.0,0.2575751]
[1747602309953,0.76187708,104130.0,104120.0,0.26717912]
[1747602310786,0.75227417,104130.0,104120.0,0.2575751]
[1747602310990,0.74267098,104130.0,104120.0,0.2575751]
[1747602312309,0.74267098,104130.0,104120.0,0.26717912]
[1747602312725,0.74267098,104130.0,104120.0,0.2408751]
[1747602313983,0.74267098,104130.0,104120.0,0.25047912]
[1747602314952,0.74267098,104130.0,104120.0,0.26008296]
[1747602316539,0.56020648,104130.0,104120.0,0.26968661]
[1747602316749,0.56020648,104130.0,104120.0,0.27998184]
[1747602316956,0.56020648,104130.0,104120.0,0.26968661]
[1747602317792,0.56000648,104130.0,104120.0,0.26968661]
[1747602319574,0.56000537,104130.0,104120.0,0.26968661]
[1747602319800,0.00940282,104140.0,104130.0,0.22087662]
[1747602320050,0.56936653,104140.0,104130.0,0.23797662]
[1747602320263,0.55996371,104140.0,104130.0,0.25468775]
[1747602320483,0.57916815,104140.0,104130.0,0.25909159]
[1747602320700,0.57916815,104140.0,104130.0,0.26692258]
[1747602320953,0.57916815,104140.0,104130.0,0.26568341]
[1747602321168,0.57916815,104140.0,104130.0,0.26638398]
[1747602321383,0.57916815,104140.0,104130.0,0.25678125]
[1747602322088,0.57916815,104140.0,104130.0,0.25778125]
[1747602322294,0.62713412,104150.0,104140.0,0.2112536]
[1747602322518,0.75231957,104150.0,104140.0,0.2112536]
[1747602322739,0.75231957,104150.0,104140.0,0.21234696]
[1747602323165,0.94435029,104150.0,104140.0,0.21234696]
[1747602323374,0.9347494,104150.0,104140.0,0.21234696]
[1747602323792,0.9357494,104150.0,104140.0,0.21234696]
[1747602324006,0.9357494,104150.0,104140.0,0.22146103]
[1747602324468,0.9367494,104150.0,104140.0,0.22146103]
[1747602324945,0.8886494,104150.0,104140.0,0.22146103]
[1747602327274,0.8723694,104150.0,104140.0,0.22146103]
[1747602328808,0.86278407,104150.0,104140.0,0.22146103]
[1747602331640,0.88078407,104150.0,104140.0,0.22146103]
[1747602332476,0.86278407,104150.0,104140.0,0.22146103]
[1747602332681,0.86278407,104150.0,104140.0,0.22036767]
[1747602333476,0.88078407,104150.0,104140.0,0.22036777]
[1747602335386,0.87982407,104150.0,104140.0,0.22036777]
[1747602336687,0.87022291,104150.0,104140.0,0.22036777]
[1747602337585,0.66958291,104150.0,104140.0,0.22036777]
[1747602337814,2.00848122,104150.0,104140.0,0.00911407]
[1747602338080,2.47621049,104150.0,104140.0,0.00911407]
[1747602338848,0.5512737,104130.0,104120.0,0.00027381]
[1747602339075,1.08197696,104130.0,104120.0,0.00027381]
[1747602339779,1.11110863,104130.0,104120.0,0.00027381]
[1747602340696,1.11310863,104130.0,104120.0,0.00027381]
[1747602340938,1.11510863,104130.0,104120.0,0.00027381]
[1747602341647,1.08597696,104130.0,104120.0,0.00027381]
[1747602342338,0.8879631,104130.0,104120.0,0.00027381]
[1747602342557,1.08597696,104130.0,104120.0,0.00027381]
[1747602345145,0.88549696,104130.0,104120.0,0.00027381]
[1747602345147,1.08589696,104130.0,104120.0,0.00027381]
[1747602348102,0.88549696,104130.0,104120.0,0.00027381]
[1747602348342,1.08585696,104130.0,104120.0,0.00027381]
[1747602353250,0.88549696,104130.0,104120.0,0.00027381]
[1747602353466,1.08577696,104130.0,104120.0,0.00027381]
[1747602357701,1.08573696,104130.0,104120.0,0.00027381]
[1747602358445,0.6525831,104130.0,104120.0,0.00027381]
[1747602358658,0.3125831,104130.0,104120.0,0.246268]
[1747602358869,0.32218574,104130.0,104120.0,0.24626818]
[1747602359082,0.66218574,104130.0,104120.0,0.24626818]
[1747602359291,0.66218574,104130.0,104120.0,0.2558722]
[1747602359500,0.66218574,104130.0,104120.0,0.24626818]
[1747602359821,0.32218574,104130.0,104120.0,0.24626818]
[1747602360052,0.02320555,104130.0,104120.0,0.26547567]
[1747602360265,0.37280874,104130.0,104120.0,0.26547567]
[1747602360491,0.36320555,104130.0,104120.0,0.26547567]
[1747602360700,0.004,104130.0,104120.0,0.27457819]
[1747602361347,0.004,104130.0,104120.0,0.37188759]
[1747602361565,0.004,104130.0,104120.0,0.08732736]
[1747602361756,0.004,104130.0,104120.0,0.14256754]
[1747602361956,0.004,104130.0,104120.0,0.16177503]
[1747602362230,0.004,104130.0,104120.0,0.17137914]
[1747602362643,0.004,104130.0,104120.0,0.19240148]
[1747602363046,0.002,104130.0,104120.0,0.19240148]
[1747602363488,0.0490459,104150.0,104140.0,0.22085569]
[1747602363700,0.03944511,104150.0,104140.0,0.42129569]
[1747602364584,0.04144511,104150.0,104140.0,0.42129569]
[1747602364826,0.02224223,104150.0,104140.0,0.4308975]
[1747602365043,0.03184367,104150.0,104140.0,0.4308975]
[1747602365252,0.03384367,104150.0,104140.0,0.4308975]
[1747602365694,0.0434452,104150.0,104140.0,0.4308975]
[1747602365907,0.0434452,104150.0,104140.0,0.42129569]
[1747602367055,0.00504,104150.0,104140.0,0.4655975]
[1747602367930,0.00104,104150.0,104140.0,0.4655975]
[1747602368389,0.00104,104150.0,104140.0,0.9775469]
[1747602368885,0.00104,104150.0,104140.0,1.3322448]
[1747602369120,0.00104,104150.0,104140.0,1.5322448]
[1747602370015,0.00104,104150.0,104140.0,1.5332448]
[1747602370451,0.00104,104150.0,104140.0,1.5342448]
[1747602370664,0.00104,104150.0,104140.0,1.5332448]
[1747602370880,0.00104,104150.0,104140.0,1.5322448]
[1747602371095,0.00104,104150.0,104140.0,1.5362448]
[1747602371311,0.00104,104150.0,104140.0,1.55166293]
[1747602372383,0.00104,104150.0,104140.0,1.96366293]
[1747602374695,0.00104,104150.0,104140.0,1.98787131]
[1747602375825,0.00104,104150.0,104140.0,2.01241216]
[1747602376045,0.002,104170.0,104160.0,0.595013]
[1747602376272,0.002,104170.0,104160.0,1.0921224]
[1747602376497,0.002,104170.0,104160.0,0.3181224]
[1747602376713,0.002,104170.0,104160.0,0.5345424]
[1747602376956,0.002,104170.0,104160.0,0.3523224]
[1747602377172,0.002,104170.0,104160.0,0.7520824]
[1747602377391,0.00247352,104170.0,104160.0,1.0920824]
[1747602377614,0.00247352,104170.0,104160.0,1.14010486]
[1747602378040,0.00247352,104170.0,104160.0,1.14310486]
[1747602379342,0.01179381,104190.0,104180.0,0.59477061]
[1747602379572,0.01179381,104190.0,104180.0,1.3065272]
[1747602380031,0.01179381,104190.0,104180.0,1.31608951]
[1747602380471,0.01279381,104190.0,104180.0,1.31608951]
[1747602380924,0.01279381,104190.0,104180.0,1.31808951]
[1747602381143,0.01179381,104190.0,104180.0,1.35371602]
[1747602381378,0.01179381,104190.0,104180.0,1.37825687]
[1747602381592,0.01,104200.0,104190.0,0.59474943]
[1747602381828,0.01,104200.0,104190.0,0.69506387]
[1747602382040,0.26532796,104200.0,104190.0,0.4212397]
[1747602382258,0.25573177,104200.0,104190.0,0.01980504]
[1747602382446,0.25573177,104200.0,104190.0,0.21968504]
[1747602382660,0.05419646,104200.0,104190.0,0.41164204]
[1747602382867,0.0446,104200.0,104190.0,0.44043447]
[1747602383086,0.05419628,104200.0,104190.0,0.44043447]
[1747602383368,0.0446,104200.0,104190.0,0.44043447]
[1747602383570,0.0274,104200.0,104190.0,0.44043447]
[1747602383999,0.03699619,104200.0,104190.0,0.44043447]
[1747602384217,0.0274,104200.0,104190.0,0.24959725]
[1747602384435,0.06379247,104200.0,104190.0,0.44943725]